fUST/lending_fUST_20240902
["ID","MTS","AMOUNT","RATE_DAILY","PERIOD"]
[336930204,1725245458944,-500.0,0.00025205,2]
[336930205,1725245458955,-805.36,0.00025205,2]
[336930206,1725245458965,-500.0,0.00025205,2]
[336930207,1725245458976,-500.0,0.00025205,2]
[336930208,1725245458987,-500.0,0.00025205,2]
[336930209,1725245458997,-500.0,0.00025205,2]
[336930210,1725245459006,-500.0,0.00025205,2]
[336930211,1725245459016,-500.0,0.00025205,2]
[336930212,1725245459025,-500.0,0.00025205,2]
[336930213,1725245459035,-500.0,0.00025205,2]
[336930214,1725245459045,-500.0,0.00025205,2]
[336930215,1725245459055,-783.24,0.00025205,2]
[336930216,1725245459064,-980.28,0.00025205,2]
[336930217,1725245459074,-527.96210236,0.00025205,2]
[336930218,1725245459084,-500.0,0.00025205,2]
[336930219,1725245459093,-1130.18,0.00025205,2]
[336930220,1725245459103,-500.0,0.00025205,2]
[336930221,1725245459112,-504.32544795,0.00025205,2]
[336930222,1725245459121,-500.0,0.00025205,2]
[336930223,1725245459131,-500.0,0.00025205,2]
[336930224,1725245459140,-500.0,0.00025205,2]
[336930225,1725245459150,-500.0,0.00025205,2]
[336930226,1725245459160,-1600.3,0.00025205,2]
[336930227,1725245459173,-749.32,0.00025205,2]
[336930228,1725245459182,-500.0,0.00025205,2]
[336930229,1725245459192,-500.0,0.00025205,2]
[336930230,1725245459201,-500.0,0.00025205,2]
[336930231,1725245459211,-500.0,0.00025205,2]
[336930232,1725245459219,-1477.2,0.00025205,2]
[336930233,1725245459228,-651.41,0.00025205,2]
[336930234,1725245459238,-505.07028392,0.00025205,2]
[336930235,1725245459247,-500.0,0.00025205,2]
[336930236,1725245459257,-500.0,0.00025205,2]
[336930237,1725245459266,-500.0,0.00025205,2]
[336930238,1725245459275,-500.0,0.00025205,2]
[336930239,1725245459285,-500.0,0.00025205,2]
[336930240,1725245459295,-500.0,0.00025205,2]
[336930241,1725245459304,-500.0,0.00025205,2]
[336930242,1725245459314,-500.0,0.00025205,2]
[336930243,1725245459323,-500.0,0.00025205,2]
[336930244,1725245459332,-2372.0,0.00025205,2]
[336930245,1725245459342,-500.0,0.00025205,2]
[336930246,1725245459351,-500.0,0.00025205,2]
[336930247,1725245459360,-500.0,0.00025205,2]
[336930248,1725245459370,-10353.62,0.00025205,2]
[336930249,1725245459379,-239.88253188,0.00025205,2]
[336930250,1725245459389,-2016.4,0.00025205,2]
[336930251,1725245459399,-798.28,0.00025205,2]
[336930252,1725245459410,-500.0,0.00025205,2]
[336930253,1725245459420,-500.0,0.00025205,2]
[336930254,1725245459429,-500.0,0.00025205,2]
[336930255,1725245459439,-500.0,0.00025205,2]
[336930256,1725245459448,-500.0,0.00025205,2]
[336930257,1725245459458,-507.45,0.00025205,2]
[336930258,1725245459467,-819.83,0.00025205,2]
[336930259,1725245459477,-500.0,0.00025205,2]
[336930260,1725245459487,-500.0,0.00025205,2]
[336930261,1725245459496,-500.0,0.00025205,2]
[336930262,1725245459505,-561.50226896,0.00025205,2]
[336930263,1725245459515,-500.0,0.00025205,2]
[336930264,1725245459524,-1807.14,0.00025205,2]
[336930265,1725245459534,-648.9,0.00025205,2]
[336930266,1725245459543,-500.0,0.00025205,2]
[336930267,1725245459553,-500.0,0.00025205,2]
[336930268,1725245459562,-2271.45,0.00025205,2]
[336930269,1725245459572,-500.0,0.00025205,2]
[336930270,1725245459581,-500.0,0.00025205,2]
[336930271,1725245459591,-500.0,0.00025205,2]
[336930272,1725245459600,-500.0,0.00025205,2]
[336930273,1725245459610,-500.0,0.00025205,2]
[336930274,1725245459619,-500.0,0.00025205,2]
[336930275,1725245459630,-1210.88,0.00025205,2]
[336930276,1725245459640,-305.72984482,0.00025205,2]
[336930277,1725245459651,-501.30631589,0.00025205,2]
[336930278,1725245459660,-1602.93,0.00025205,2]
[336930279,1725245459672,-500.0,0.00025205,2]
[336930280,1725245459681,-500.0,0.00025205,2]
[336930281,1725245459691,-518.44,0.00025205,2]
[336930282,1725245459700,-500.0,0.00025205,2]
[336930283,1725245459710,-583.86,0.00025205,2]
[336930284,1725245459719,-44.39887464,0.00025205,2]
[336930285,1725245460133,-500.0,0.00024657,2]
[336930286,1725245460142,-500.0,0.00024931,2]
[336930287,1725245460151,-455.60112536,0.00025205,2]
[336930288,1725245460161,-796.69,0.00025205,2]
[336930289,1725245460171,-500.0,0.00025205,2]
[336930290,1725245460180,-1678.17,0.00025205,2]
[336930291,1725245460189,-500.0,0.00025205,2]
[336930292,1725245460199,-938.05,0.00025205,2]
[336930293,1725245460208,-500.0,0.00025205,2]
[336930294,1725245460218,-500.0,0.00025205,2]
[336930295,1725245460227,-624.98,0.00025205,2]
[336930296,1725245460237,-500.0,0.00025205,2]
[336930297,1725245460246,-500.0,0.00025205,2]
[336930298,1725245460256,-500.0,0.00025205,2]
[336930299,1725245460265,-502.42464154,0.00025205,2]
[336930300,1725245460274,-549.52,0.00025205,2]
[336930301,1725245460284,-500.0,0.00025205,2]
[336930302,1725245460293,-500.0,0.00025205,2]
[336930303,1725245460303,-500.0,0.00025205,2]
[336930304,1725245460312,-1271.02,0.00025205,2]
[336930305,1725245460321,-500.0,0.00025205,2]
[336930306,1725245460330,-944.3,0.00025205,2]
[336930307,1725245460339,-500.0,0.00025205,2]
[336930308,1725245460348,-500.0,0.00025205,2]
[336930309,1725245460358,-500.0,0.00025205,2]
[336930310,1725245460367,-505.10251526,0.00025205,2]
[336930311,1725245460376,-500.0,0.00025205,2]
[336930312,1725245460385,-641.32922599,0.00025205,2]
[336930313,1725245460394,-1442.52,0.00025205,2]
[336930314,1725245460403,-1220.53,0.00025205,2]
[336930315,1725245460412,-500.0,0.00025205,2]
[336930316,1725245460421,-500.0,0.00025205,2]
[336930317,1725245460431,-500.0,0.00025205,2]
[336930318,1725245460440,-500.0,0.00025205,2]
[336930319,1725245460449,-1252.02,0.00025205,2]
[336930320,1725245460459,-500.0,0.00025205,2]
[336930321,1725245460468,-500.0,0.00025205,2]
[336930322,1725245460478,-500.0,0.00025205,2]
[336930323,1725245460487,-1471.21,0.00025205,2]
[336930324,1725245460495,-500.0,0.00025205,2]
[336930325,1725245460505,-1273.08,0.00025205,2]
[336930326,1725245460514,-500.0,0.00025205,2]
[336930327,1725245460524,-500.0,0.00025205,2]
[336930328,1725245460534,-951.43,0.00025205,2]
[336930329,1725245460543,-543.66,0.00025205,2]
[336930330,1725245460552,-3288.16,0.00025205,2]
[336930331,1725245460562,-2113.05,0.00025205,2]
[336930332,1725245460571,-500.0,0.00025205,2]
[336930333,1725245460580,-500.0,0.00025205,2]
[336930334,1725245460589,-326.14200045,0.00025205,2]
[336930335,1725245460598,-504.30642844,0.00025205,2]
[336930336,1725245460607,-500.0,0.00025205,2]
[336930337,1725245460616,-500.0,0.00025205,2]
[336930338,1725245460625,-510.4,0.00025205,2]
[336930339,1725245460634,-540.82,0.00025205,2]
[336930340,1725245460643,-500.0,0.00025205,2]
[336930341,1725245460652,-500.0,0.00025205,2]
[336930342,1725245460662,-505.79624477,0.00025205,2]
[336930343,1725245460672,-500.0,0.00025205,2]
[336930344,1725245460681,-500.0,0.00025205,2]
[336930345,1725245460690,-1636.45,0.00025205,2]
[336930346,1725245460699,-6652.16,0.00025205,2]
[336930347,1725245460708,-500.0,0.00025205,2]
[336930348,1725245460717,-347.3069403,0.00025205,2]
[336930349,1725245460726,-727.54,0.00025205,2]
[336930350,1725245460735,-500.0,0.00025205,2]
[336930351,1725245460744,-1272.03,0.00025205,2]
[336930352,1725245460753,-500.0,0.00025205,2]
[336930353,1725245460763,-500.0,0.00025205,2]
[336930354,1725245460773,-1287.7,0.00025205,2]
[336930355,1725245460782,-500.0,0.00025205,2]
[336930356,1725245460792,-500.0,0.00025205,2]
[336930357,1725245460801,-1164.64,0.00025205,2]
[336930358,1725245460810,-815.87,0.00025205,2]
[336930359,1725245460819,-500.0,0.00025205,2]
[336930360,1725245460829,-500.0,0.00025205,2]
[336930361,1725245460838,-200.0,0.00025205,2]
[336930362,1725245460847,-1485.1,0.00025205,2]
[336930363,1725245460856,-1113.68,0.00025205,2]
[336930364,1725245460866,-500.0,0.00025205,2]
[336930365,1725245460879,-500.0,0.00025205,2]
[336930366,1725245460888,-500.0,0.00025205,2]
[336930367,1725245460897,-1377.32,0.00025205,2]
[336930368,1725245460907,-500.0,0.00025205,2]
[336930369,1725245460920,-533.68,0.00025205,2]
[336930370,1725245460931,-500.0,0.00025205,2]
[336930371,1725245460941,-778.94,0.00025205,2]
[336930372,1725245460952,-500.0,0.00025205,2]
[336930373,1725245460963,-648.39649436,0.00025205,2]
[336930374,1725245460972,-2370.93,0.00025205,2]
[336930375,1725245460981,-500.0,0.00025205,2]
[336930376,1725245460991,-500.0,0.00025205,2]
[336930377,1725245461001,-3011.23,0.00025205,2]
[336930378,1725245461011,-500.0,0.00025205,2]
[336930379,1725245461020,-500.0,0.00025205,2]
[336930380,1725245461030,-500.0,0.00025205,2]
[336930381,1725245461040,-1186.75,0.00025205,2]
[336930382,1725245461049,-1036.44,0.00025205,2]
[336930383,1725245461058,-500.0,0.00025205,2]
[336930384,1725245461067,-500.0,0.00025205,2]
[336930385,1725245461077,-1504.26,0.00025205,2]
[336930386,1725245461087,-500.0,0.00025205,2]
[336930387,1725245461097,-773.86,0.00025205,2]
[336930388,1725245461106,-645.89,0.00025205,2]
[336930389,1725245461117,-500.0,0.00025205,2]
[336930390,1725245461127,-480.23451203,0.00025205,2]
[336930391,1725245461138,-500.0,0.00025205,2]
[336930392,1725245461147,-500.0,0.00025205,2]
[336930393,1725245461156,-931.63,0.00025205,2]
[336930394,1725245461166,-585.13404961,0.00025205,2]
[336930395,1725245461177,-1683.82,0.00025205,2]
[336930396,1725245461186,-1117.6,0.00025205,2]
[336930397,1725245461195,-500.0,0.00025205,2]
[336930398,1725245461205,-757.69,0.00025205,2]
[336930399,1725245461214,-500.0,0.00025205,2]
[336930400,1725245461223,-500.0,0.00025205,2]
[336930401,1725245461232,-500.0,0.00025205,2]
[336930402,1725245461241,-500.0,0.00025205,2]
[336930403,1725245461250,-500.0,0.00025205,2]
[336930404,1725245461259,-643.92,0.00025205,2]
[336930405,1725245461268,-500.0,0.00025205,2]
[336930406,1725245461277,-500.0,0.00025205,2]
[336930407,1725245461286,-500.0,0.00025205,2]
[336930408,1725245461296,-500.0,0.00025205,2]
[336930409,1725245461305,-1022.52,0.00025205,2]
[336930410,1725245461314,-500.0,0.00025205,2]
[336930411,1725245461324,-1603.45,0.00025205,2]
[336930412,1725245461333,-500.0,0.00025205,2]
[336930413,1725245461342,-1282.76,0.00025205,2]
[336930414,1725245461352,-500.0,0.00025205,2]
[336930415,1725245461362,-3000.0,0.0002521,2]
[336930416,1725245461371,-151.0,0.0002521,7]
[336930417,1725245461383,-3000.0,0.0002522,2]
[336930418,1725245461392,-1000.0,0.00025221,2]
[336930419,1725245461401,-676.71261535,0.00025221,2]
[336930420,1725245461411,-160.0,0.00025221,7]
[336930421,1725245461423,-3000.0,0.0002523,2]
[336930422,1725245461432,-3000.0,0.0002524,2]
[336930423,1725245461442,-3000.0,0.0002525,2]
[336930424,1725245461452,-3000.0,0.0002526,2]
[336930425,1725245461462,-3000.0,0.0002527,2]
[336930426,1725245461471,-3832.529754,0.0002528,2]
[336930427,1725245461480,-277.191273,0.00025296,2]
[336930428,1725245461490,-190.360737,0.00025296,2]
[336930429,1725245461499,-256.841411,0.00025296,2]
[336930430,1725245461508,-159.641673,0.00025296,2]
[336930431,1725245461517,-190.360738,0.00025296,2]
[336930432,1725245461526,-172.603874,0.00025296,2]
[336930433,1725245461535,-163.63,0.00025379,7]
[336930434,1725245461544,-164.81,0.00025379,7]
[336930435,1725245461554,-150.112234,0.000254,5]
[336930436,1725245461563,-500.0,0.00025479,2]
[336930437,1725245461574,-446.3662837,0.00025479,2]
[336930438,1725245461583,-507.13570586,0.00025479,2]
[336930439,1725245461594,-934.21,0.00025479,2]
[336930440,1725245461604,-500.0,0.00025479,2]
[336930441,1725245461614,-500.0,0.00025479,2]
[336930442,1725245461624,-500.0,0.00025479,2]
[336930443,1725245461635,-500.0,0.00025479,2]
[336930444,1725245461644,-500.0,0.00025479,2]
[336930445,1725245461653,-500.0,0.00025479,2]
[336930446,1725245461662,-500.0,0.00025479,2]
[336930447,1725245461673,-500.0,0.00025479,2]
[336930448,1725245461682,-500.0,0.00025479,2]
[336930449,1725245461691,-500.0,0.00025479,2]
[336930450,1725245461700,-500.0,0.00025479,2]
[336930451,1725245461710,-495.34,0.00025479,2]
[336930452,1725245461719,-500.0,0.00025479,2]
[336930453,1725245461729,-500.0,0.00025479,2]
[336930454,1725245461738,-500.0,0.00025479,2]
[336930455,1725245461747,-631.23,0.00025479,2]
[336930456,1725245461756,-500.0,0.00025479,2]
[336930457,1725245461766,-500.0,0.00025479,2]
[336930458,1725245461776,-500.0,0.00025479,2]
[336930459,1725245461922,-500.0,0.00025479,2]
[336930460,1725245461932,-500.0,0.00025479,2]
[336930461,1725245461943,-500.0,0.00025479,2]
[336930462,1725245461953,-500.0,0.00025479,2]
[336930463,1725245461962,-500.0,0.00025479,2]
[336930464,1725245461972,-500.0,0.00025479,2]
[336930465,1725245461981,-510.33048496,0.00025479,2]
[336930466,1725245461990,-505.12970038,0.00025479,2]
[336930467,1725245462000,-500.0,0.00025479,2]
[336930468,1725245462009,-500.0,0.00025479,2]
[336930469,1725245462018,-500.0,0.00025479,2]
[336930470,1725245462028,-500.0,0.00025479,2]
[336930471,1725245462037,-497.48396661,0.00025479,2]
[336930472,1725245462047,-500.0,0.00025479,2]
[336930473,1725245462056,-500.0,0.00025479,2]
[336930474,1725245462065,-500.0,0.00025479,2]
[336930475,1725245462075,-500.0,0.00025479,2]
[336930476,1725245462084,-497.34361056,0.00025479,2]
[336930477,1725245462094,-500.0,0.00025479,2]
[336930478,1725245462104,-461.40907727,0.00025479,2]
[336930479,1725245462113,-501.46132272,0.00025479,2]
[336930480,1725245462122,-500.0,0.00025479,2]
[336930481,1725245462132,-500.0,0.00025479,2]
[336930482,1725245462143,-500.0,0.00025479,2]
[336930483,1725245462152,-506.73489142,0.00025479,2]
[336930484,1725245462162,-500.0,0.00025479,2]
[336930485,1725245462173,-608.9,0.00025479,2]
[336930486,1725245462182,-792.2,0.00025479,2]
[336930487,1725245462192,-940.86,0.00025479,2]
[336930488,1725245462201,-980.56,0.00025479,2]
[336930489,1725245462210,-500.0,0.00025479,2]
[336930490,1725245462220,-500.0,0.00025479,2]
[336930491,1725245462229,-500.0,0.00025479,2]
[336930492,1725245462238,-511.19595774,0.00025479,2]
[336930493,1725245462248,-500.0,0.00025479,2]
[336930494,1725245462257,-500.0,0.00025479,2]
[336930495,1725245462266,-500.0,0.00025479,2]
[336930496,1725245462275,-500.0,0.00025479,2]
[336930497,1725245462284,-505.35678504,0.00025479,2]
[336930498,1725245462293,-500.0,0.00025479,2]
[336930499,1725245462303,-515.25116768,0.00025479,2]
[336930500,1725245462314,-500.0,0.00025479,2]
[336930501,1725245462324,-500.0,0.00025479,2]
[336930502,1725245462333,-500.0,0.00025479,2]
[336930503,1725245462342,-500.0,0.00025479,2]
[336930504,1725245462352,-500.0,0.00025479,2]
[336930505,1725245462363,-500.0,0.00025479,2]
[336930506,1725245462372,-500.0,0.00025479,2]
[336930507,1725245462383,-500.0,0.00025479,2]
[336930508,1725245462394,-604.28,0.00025479,2]
[336930509,1725245462404,-500.0,0.00025479,2]
[336930510,1725245462416,-500.0,0.00025479,2]
[336930511,1725245462427,-500.0,0.00025479,2]
[336930512,1725245462436,-500.0,0.00025479,2]
[336930513,1725245462446,-500.0,0.00025479,2]
[336930514,1725245462455,-500.0,0.00025479,2]
[336930515,1725245462464,-500.0,0.00025479,2]
[336930516,1725245462474,-536.3871627,0.00025479,2]
[336930517,1725245462483,-500.0,0.00025479,2]
[336930518,1725245462494,-500.0,0.00025479,2]
[336930519,1725245462504,-500.0,0.00025479,2]
[336930520,1725245462515,-500.0,0.00025479,2]
[336930521,1725245462527,-500.0,0.00025479,2]
[336930522,1725245462537,-556.01,0.00025479,2]
[336930523,1725245462548,-595.1,0.00025479,2]
[336930524,1725245462560,-500.0,0.00025479,2]
[336930525,1725245462569,-500.0,0.00025479,2]
[336930526,1725245462578,-500.0,0.00025479,2]
[336930527,1725245462589,-500.0,0.00025479,2]
[336930528,1725245462599,-500.0,0.00025479,2]
[336930529,1725245462609,-500.0,0.00025479,2]
[336930530,1725245462618,-500.0,0.00025479,2]
[336930531,1725245462628,-500.0,0.00025479,2]
[336930532,1725245462638,-500.0,0.00025479,2]
[336930533,1725245462647,-383.56486565,0.00025479,2]
[336930534,1725245462658,-500.0,0.00025479,2]
[336930535,1725245462667,-703.33,0.00025479,2]
[336930536,1725245462677,-500.0,0.00025479,2]
[336930537,1725245462687,-566.19,0.00025479,2]
[336930538,1725245462696,-624.3,0.00025479,2]
[336930539,1725245462705,-500.0,0.00025479,2]
[336930540,1725245462715,-554.55,0.00025479,2]
[336930541,1725245462726,-500.0,0.00025479,2]
[336930542,1725245462737,-663.39,0.00025479,2]
[336930543,1725245462749,-500.0,0.00025479,2]
[336930544,1725245462759,-500.0,0.00025479,2]
[336930545,1725245462767,-500.0,0.00025479,2]
[336930546,1725245462777,-500.0,0.00025479,2]
[336930547,1725245462786,-500.0,0.00025479,2]
[336930548,1725245462794,-500.0,0.00025479,2]
[336930549,1725245462805,-500.0,0.00025479,2]
[336930550,1725245462814,-500.0,0.00025479,2]
[336930551,1725245462823,-500.0,0.00025479,2]
[336930552,1725245462832,-500.0,0.00025479,2]
[336930553,1725245462841,-2780.63,0.00025479,2]
[336930554,1725245462851,-500.0,0.00025479,2]
[336930555,1725245462860,-500.0,0.00025479,2]
[336930556,1725245462871,-500.0,0.00025479,2]
[336930557,1725245462884,-500.0,0.00025479,2]
[336930558,1725245462894,-500.0,0.00025479,2]
[336930559,1725245462903,-500.0,0.00025479,2]
[336930560,1725245462913,-500.0,0.00025479,2]
[336930561,1725245462924,-945.15,0.00025479,2]
[336930562,1725245462933,-500.0,0.00025479,2]
[336930563,1725245462942,-500.0,0.00025479,2]
[336930564,1725245462951,-503.17326192,0.00025479,2]
[336930565,1725245462962,-500.0,0.00025479,2]
[336930566,1725245462972,-571.3525041,0.00025479,2]
[336930567,1725245462981,-500.0,0.00025479,2]
[336930568,1725245462992,-504.9,0.00025479,2]
[336930569,1725245463002,-500.0,0.00025479,2]
[336930570,1725245463011,-500.0,0.00025479,2]
[336930571,1725245463021,-500.0,0.00025479,2]
[336930572,1725245463030,-526.35,0.00025479,2]
[336930573,1725245463040,-500.0,0.00025479,2]
[336930574,1725245463051,-533.07142725,0.00025479,2]
[336930575,1725245463061,-500.0,0.00025479,2]
[336930576,1725245463070,-500.0,0.00025479,2]
[336930577,1725245463080,-500.0,0.00025479,2]
[336930578,1725245463090,-500.0,0.00025479,2]
[336930579,1725245463100,-500.0,0.00025479,2]
[336930580,1725245463109,-500.0,0.00025479,2]
[336930581,1725245463118,-584.84,0.00025479,2]
[336930582,1725245463127,-500.0,0.00025479,2]
[336930583,1725245463136,-500.0,0.00025479,2]
[336930584,1725245463145,-500.0,0.00025479,2]
[336930585,1725245463156,-508.0095841,0.00025479,2]
[336930586,1725245463165,-502.94461312,0.00025479,2]
[336930587,1725245463175,-508.45873812,0.00025479,2]
[336930588,1725245463185,-500.0,0.00025479,2]
[336930589,1725245463195,-500.0,0.00025479,2]
[336930590,1725245463204,-1113.96,0.00025479,2]
[336930591,1725245463214,-500.0,0.00025479,2]
[336930592,1725245463224,-501.71763306,0.00025479,2]
[336930593,1725245463233,-500.0,0.00025479,2]
[336930594,1725245463244,-500.0,0.00025479,2]
[336930595,1725245463253,-500.0,0.00025479,2]
[336930596,1725245463264,-500.0,0.00025479,2]
[336930597,1725245463273,-500.0,0.00025479,2]
[336930598,1725245463282,-810.81,0.00025479,2]
[336930599,1725245463292,-500.0,0.00025479,2]
[336930600,1725245463301,-7220.9,0.00025479,2]
[336930601,1725245463311,-400.88635098,0.00025479,2]
[336930602,1725245463320,-500.0,0.00025479,2]
[336930603,1725245463331,-500.0,0.00025479,2]
[336930604,1725245463340,-584.67,0.00025479,2]
[336930605,1725245463350,-500.0,0.00025479,2]
[336930606,1725245463360,-500.0,0.00025479,2]
[336930607,1725245463369,-500.0,0.00025479,2]
[336930608,1725245463379,-780.98,0.00025479,2]
[336930609,1725245463388,-500.0,0.00025479,2]
[336930610,1725245463397,-500.0,0.00025479,2]
[336930611,1725245463407,-580.6195655,0.00025479,2]
[336930612,1725245463416,-500.0,0.00025479,2]
[336930613,1725245463426,-1094.22,0.00025479,2]
[336930614,1725245463435,-500.0,0.00025479,2]
[336930615,1725245463445,-500.0,0.00025479,2]
[336930616,1725245463455,-500.0,0.00025479,2]
[336930617,1725245463465,-500.0,0.00025479,2]
[336930618,1725245463474,-805.36,0.00025479,2]
[336930619,1725245463484,-500.0,0.00025479,2]
[336930620,1725245463495,-500.0,0.00025479,2]
[336930621,1725245463506,-500.0,0.00025479,2]
[336930622,1725245463516,-500.0,0.00025479,2]
[336930623,1725245463525,-500.0,0.00025479,2]
[336930624,1725245463535,-500.0,0.00025479,2]
[336930625,1725245463544,-500.0,0.00025479,2]
[336930626,1725245463554,-500.0,0.00025479,2]
[336930627,1725245463563,-783.24,0.00025479,2]
[336930628,1725245463573,-980.28,0.00025479,2]
[336930629,1725245463583,-500.0,0.00025479,2]
[336930630,1725245463593,-1130.18,0.00025479,2]
[336930631,1725245463602,-500.0,0.00025479,2]
[336930632,1725245463612,-503.03954812,0.00025479,2]
[336930633,1725245463622,-500.0,0.00025479,2]
[336930634,1725245463633,-500.0,0.00025479,2]
[336930635,1725245463642,-1600.3,0.00025479,2]
[336930636,1725245463652,-749.32,0.00025479,2]
[336930637,1725245463661,-500.0,0.00025479,2]
[336930638,1725245463671,-500.0,0.00025479,2]
[336930639,1725245463681,-500.0,0.00025479,2]
[336930640,1725245463690,-500.0,0.00025479,2]
[336930641,1725245463699,-1477.2,0.00025479,2]
[336930642,1725245463709,-651.41,0.00025479,2]
[336930643,1725245463722,-500.0,0.00025479,2]
[336930644,1725245463733,-500.0,0.00025479,2]
[336930645,1725245463743,-500.0,0.00025479,2]
[336930646,1725245463753,-501.53643517,0.00025479,2]
[336930647,1725245463764,-500.0,0.00025479,2]
[336930648,1725245463774,-500.0,0.00025479,2]
[336930649,1725245463784,-500.0,0.00025479,2]
[336930650,1725245463793,-500.0,0.00025479,2]
[336930651,1725245463803,-500.0,0.00025479,2]
[336930652,1725245463813,-2372.0,0.00025479,2]
[336930653,1725245463823,-500.0,0.00025479,2]
[336930654,1725245463833,-500.0,0.00025479,2]
[336930655,1725245463842,-500.0,0.00025479,2]
[336930656,1725245463852,-10353.62,0.00025479,2]
[336930657,1725245463863,-2016.4,0.00025479,2]
[336930658,1725245463872,-798.28,0.00025479,2]
[336930659,1725245463887,-506.24544424,0.00025479,2]
[336930660,1725245463897,-500.0,0.00025479,2]
[336930661,1725245463908,-500.0,0.00025479,2]
[336930662,1725245463918,-210.05388561,0.00025479,2]
[336930663,1725245463928,-500.0,0.00025479,2]
[336930664,1725245463938,-507.45,0.00025479,2]
[336930665,1725245463948,-819.83,0.00025479,2]
[336930666,1725245463959,-500.0,0.00025479,2]
[336930667,1725245463969,-500.0,0.00025479,2]
[336930668,1725245463979,-500.0,0.00025479,2]
[336930669,1725245463989,-1807.14,0.00025479,2]
[336930670,1725245463999,-648.9,0.00025479,2]
[336930671,1725245464010,-500.0,0.00025479,2]
[336930672,1725245464019,-2271.45,0.00025479,2]
[336930673,1725245464031,-500.0,0.00025479,2]
[336930674,1725245464040,-500.0,0.00025479,2]
[336930675,1725245464051,-500.0,0.00025479,2]
[336930676,1725245464060,-500.0,0.00025479,2]
[336930677,1725245464069,-500.0,0.00025479,2]
[336930678,1725245464079,-1210.88,0.00025479,2]
[336930679,1725245464089,-1602.93,0.00025479,2]
[336930680,1725245464099,-500.0,0.00025479,2]
[336930681,1725245464109,-518.44,0.00025479,2]
[336930682,1725245464119,-500.0,0.00025479,2]
[336930683,1725245464131,-583.86,0.00025479,2]
[336930684,1725245464140,-500.0,0.00025479,2]
[336930685,1725245464150,-796.69,0.00025479,2]
[336930686,1725245464160,-500.0,0.00025479,2]
[336930687,1725245464171,-1678.17,0.00025479,2]
[336930688,1725245464180,-500.0,0.00025479,2]
[336930689,1725245464190,-938.05,0.00025479,2]
[336930690,1725245464199,-500.0,0.00025479,2]
[336930691,1725245464209,-500.0,0.00025479,2]
[336930692,1725245464219,-624.98,0.00025479,2]
[336930693,1725245464228,-500.0,0.00025479,2]
[336930694,1725245464238,-549.52,0.00025479,2]
[336930695,1725245464247,-303.5198211,0.00025479,2]
[336930696,1725245464259,-500.0,0.00025479,2]
[336930697,1725245464269,-1271.02,0.00025479,2]
[336930698,1725245464278,-530.59091496,0.00025479,2]
[336930699,1725245464289,-944.3,0.00025479,2]
[336930700,1725245464298,-500.0,0.00025479,2]
[336930701,1725245464307,-500.0,0.00025479,2]
[336930702,1725245464317,-500.0,0.00025479,2]
[336930703,1725245464327,-505.74595886,0.00025479,2]